fUST/lending_fUST_20250323
["ID","MTS","AMOUNT","RATE_DAILY","PERIOD"]
[356573555,1742699357282,-500.0,0.00020209,2]
[356573556,1742699357304,-500.0,0.00020209,2]
[356573557,1742699357326,-500.0,0.00020209,2]
[356573558,1742699357348,-500.0,0.00020209,2]
[356573559,1742699357370,-500.0,0.00020209,2]
[356573560,1742699357392,-500.0,0.00020209,2]
[356573561,1742699357414,-500.0,0.00020209,2]
[356573562,1742699357436,-500.0,0.00020209,2]
[356573563,1742699357457,-500.0,0.00020209,2]
[356573564,1742699357479,-500.0,0.00020209,2]
[356573565,1742699357500,-500.0,0.00020209,2]
[356573566,1742699357522,-500.0,0.00020209,2]
[356573567,1742699357543,-500.0,0.00020209,2]
[356573568,1742699357565,-500.0,0.00020209,2]
[356573569,1742699357586,-500.0,0.00020209,2]
[356573570,1742699357608,-500.0,0.00020209,2]
[356573571,1742699357629,-500.0,0.00020209,2]
[356573572,1742699357654,-500.0,0.00020209,2]
[356573573,1742699357676,-298.08707664,0.00020209,2]
[356573574,1742699357697,-500.0,0.00020209,2]
[356573575,1742699357719,-500.0,0.00020209,2]
[356573576,1742699357742,-500.0,0.00020209,2]
[356573577,1742699357765,-500.0,0.00020209,2]
[356573578,1742699357787,-500.0,0.00020209,2]
[356573579,1742699357809,-500.0,0.00020209,2]
[356573580,1742699357831,-500.0,0.00020209,2]
[356573581,1742699357853,-500.0,0.00020209,2]
[356573582,1742699357875,-500.0,0.00020209,2]
[356573583,1742699357896,-500.0,0.00020209,2]
[356573584,1742699357918,-500.0,0.00020209,2]
[356573585,1742699357940,-300.0,0.00020209,2]
[356573586,1742699357962,-500.0,0.00020209,2]
[356573587,1742699357985,-500.0,0.00020209,2]
[356573588,1742699358005,-24900.0,0.00020213,2]
[356573589,1742699358027,-321.88588477,0.00020316,2]
[356573590,1742699358050,-1768.9723299,0.00020681,2]
[356573591,1742699358073,-2248.43609249,0.00020902,2]
[356573592,1742699358097,-2421.83589187,0.00021,2]
[356573593,1742699358276,-166.96125138,0.00021,2]
[356573743,1742699438636,-85.33759789,0.00020216,2]
[356573744,1742699438651,-113.82375252,0.00020216,2]
[356573745,1742699438660,-4547.95624748,0.00021,2]
[356573755,1742699440119,-18.2165523,0.00021,2]
[356573756,1742699440129,-1161.47259666,0.00021,14]
[356573757,1742699440139,-199.16135039,0.00021017,2]
[356573758,1742699440150,-228.24522843,0.00021037,2]
[356573759,1742699440159,-150.0,0.00021345,2]
[356573760,1742699440180,-150.0,0.00021482,2]
[356573761,1742699440191,-199.16135039,0.00021817,2]
[356573762,1742699440200,-150.0,0.00021842,2]
[356573763,1742699440210,-500.0,0.00021914,2]
[356573764,1742699440220,-500.0,0.00021914,2]
[356573765,1742699440230,-500.0,0.00021914,2]
[356573766,1742699440239,-500.0,0.00021914,2]
[356573767,1742699440248,-500.0,0.00021914,2]
[356573768,1742699440258,-201.93079323,0.00021914,2]
[356573769,1742699440267,-500.0,0.00021914,2]
[356573770,1742699440277,-500.0,0.00021914,2]
[356573771,1742699440286,-500.0,0.00021914,2]
[356573772,1742699440296,-500.0,0.00021914,2]
[356573773,1742699440306,-500.0,0.00021914,2]
[356573774,1742699440315,-300.0,0.00021914,2]
[356573775,1742699440325,-14151.1303535,0.00021915,3]
[356573776,1742699440335,-834.51197368,0.00021915,3]
[356573777,1742699440346,-160.0,0.00021915,3]
[356573778,1742699440355,-12458.93820146,0.00021915,3]
[356573779,1742699440365,-356.15289929,0.00021915,2]
[356573780,1742699440375,-30649.69983589,0.00021916,2]
[356573781,1742699440384,-465.23158325,0.00021917,2]
[356573782,1742699440393,-500.0,0.00021917,2]
[356573783,1742699440402,-500.0,0.00021917,2]
[356573784,1742699440412,-500.0,0.00021917,2]
[356573785,1742699440422,-947.32,0.00021917,2]
[356573786,1742699440431,-607.86,0.00021917,2]
[356573787,1742699440441,-505.73,0.00021917,2]
[356573788,1742699440450,-500.0,0.00021917,2]
[356573789,1742699440459,-558.59,0.00021917,2]
[356573790,1742699440469,-500.0,0.00021917,2]
[356573791,1742699440479,-500.0,0.00021917,2]
[356573792,1742699440489,-500.0,0.00021917,2]
[356573793,1742699440499,-500.0,0.00021917,2]
[356573794,1742699440508,-955.69,0.00021917,2]
[356573795,1742699440519,-500.0,0.00021917,2]
[356573796,1742699440529,-500.0,0.00021917,2]
[356573797,1742699440538,-2000.0,0.00021917,2]
[356573798,1742699440549,-866.35,0.00021917,2]
[356573799,1742699440558,-500.0,0.00021917,2]
[356573800,1742699440568,-506.36026922,0.00021917,2]
[356573801,1742699440578,-500.0,0.00021917,2]
[356573802,1742699440587,-581.51,0.00021917,2]
[356573803,1742699440597,-500.0,0.00021917,2]
[356573804,1742699440606,-500.0,0.00021917,2]
[356573805,1742699440615,-652.36,0.00021917,2]
[356573806,1742699440624,-500.0,0.00021917,2]
[356573807,1742699440634,-500.0,0.00021917,2]
[356573808,1742699440643,-503.51,0.00021917,2]
[356573809,1742699440653,-500.0,0.00021917,2]
[356573810,1742699440662,-500.0,0.00021917,2]
[356573811,1742699440672,-500.0,0.00021917,2]
[356573812,1742699440681,-500.0,0.00021917,2]
[356573813,1742699440691,-816.51,0.00021917,2]
[356573814,1742699440700,-500.0,0.00021917,2]
[356573815,1742699440710,-500.0,0.00021917,2]
[356573816,1742699440720,-500.0,0.00021917,2]
[356573817,1742699440729,-803.28,0.00021917,2]
[356573818,1742699440924,-500.0,0.00021917,2]
[356573819,1742699440934,-708.62,0.00021917,2]
[356573820,1742699440944,-1172.93,0.00021917,2]
[356573821,1742699440954,-500.0,0.00021917,2]
[356573822,1742699440963,-589.80334736,0.00021917,2]
[356573823,1742699440973,-500.0,0.00021917,2]
[356573824,1742699440982,-500.0,0.00021917,2]
[356573825,1742699440992,-500.0,0.00021917,2]
[356573826,1742699441001,-617.29,0.00021917,2]
[356573827,1742699441011,-500.0,0.00021917,2]
[356573828,1742699441020,-603.44,0.00021917,2]
[356573829,1742699441031,-500.0,0.00021917,2]
[356573830,1742699441040,-500.0,0.00021917,2]
[356573831,1742699441051,-500.0,0.00021917,2]
[356573832,1742699441060,-500.0,0.00021917,2]
[356573833,1742699441069,-500.0,0.00021917,2]
[356573834,1742699441079,-500.0,0.00021917,2]
[356573835,1742699441088,-500.0,0.00021917,2]
[356573836,1742699441098,-500.0,0.00021917,2]
[356573837,1742699441111,-874.78,0.00021917,2]
[356573838,1742699441120,-500.0,0.00021917,2]
[356573839,1742699441130,-500.0,0.00021917,2]
[356573840,1742699441140,-500.0,0.00021917,2]
[356573841,1742699441151,-500.0,0.00021917,2]
[356573842,1742699441161,-500.0,0.00021917,2]
[356573843,1742699441171,-500.0,0.00021917,2]
[356573844,1742699441183,-500.0,0.00021917,2]
[356573845,1742699441195,-500.0,0.00021917,2]
[356573846,1742699441205,-500.0,0.00021917,2]
[356573847,1742699441215,-500.0,0.00021917,2]
[356573848,1742699441225,-591.45,0.00021917,2]
[356573849,1742699441235,-500.0,0.00021917,2]
[356573850,1742699441246,-500.0,0.00021917,2]
[356573851,1742699441257,-500.0,0.00021917,2]
[356573852,1742699441267,-1015.89,0.00021917,2]
[356573853,1742699441276,-500.0,0.00021917,2]
[356573854,1742699441287,-500.0,0.00021917,2]
[356573855,1742699441297,-500.0,0.00021917,2]
[356573856,1742699441306,-500.0,0.00021917,2]
[356573857,1742699441316,-522.88,0.00021917,2]
[356573858,1742699441325,-500.0,0.00021917,2]
[356573859,1742699441335,-560.77,0.00021917,2]
[356573860,1742699441344,-500.0,0.00021917,2]
[356573861,1742699441354,-500.0,0.00021917,2]
[356573862,1742699441363,-698.34,0.00021917,2]
[356573863,1742699441372,-483.828909,0.00021917,2]
[356573865,1742699442943,-25.82243882,0.00021917,2]
[356573866,1742699442956,-1133.57865218,0.00021917,2]
[356573867,1742699442965,-500.0,0.00021917,2]
[356573868,1742699442975,-500.0,0.00021917,2]
[356573869,1742699442985,-218.29230677,0.00021917,2]
[356573870,1742699442994,-737.78,0.00021917,2]
[356573872,1742699443004,-1897.08,0.00021917,2]
[356573874,1742699443014,-1512.75,0.00021917,2]
[356573875,1742699443024,-500.0,0.00021917,2]
[356573876,1742699443034,-500.0,0.00021917,2]
[356573877,1742699443044,-1824.5,0.00021917,2]
[356573878,1742699443053,-500.0,0.00021917,2]
[356573879,1742699443062,-643.46,0.00021917,2]
[356573880,1742699443072,-2704.94,0.00021917,2]
[356573881,1742699443082,-659.46,0.00021917,2]
[356573882,1742699443091,-500.0,0.00021917,2]
[356573883,1742699443100,-500.0,0.00021917,2]
[356573884,1742699443114,-895.83,0.00021917,2]
[356573885,1742699443123,-500.0,0.00021917,2]
[356573886,1742699443133,-692.74,0.00021917,2]
[356573887,1742699443142,-500.0,0.00021917,2]
[356573888,1742699443153,-500.0,0.00021917,2]
[356573889,1742699443162,-500.0,0.00021917,2]
[356573890,1742699443172,-1069.2,0.00021917,2]
[356573891,1742699443183,-654.03,0.00021917,2]
[356573892,1742699443194,-602.99,0.00021917,2]
[356573893,1742699443203,-642.94,0.00021917,2]
[356573894,1742699443214,-1208.1,0.00021917,2]
[356573895,1742699443223,-500.0,0.00021917,2]
[356573896,1742699443233,-500.0,0.00021917,2]
[356573897,1742699443243,-500.0,0.00021917,2]
[356573898,1742699443253,-651.94,0.00021917,2]
[356573899,1742699443262,-1440.40014056,0.00021917,2]
[356573900,1742699443405,-258.70985944,0.00021917,2]
[356573901,1742699443415,-1235.11,0.00021917,2]
[356573902,1742699443425,-500.0,0.00021917,2]
[356573903,1742699443434,-407.99938474,0.00021917,2]
[356573905,1742699445931,-37.13703714,0.00021917,2]
[356573906,1742699445942,-507.26357812,0.00021917,2]
[356573907,1742699445952,-747.45,0.00021917,2]
[356573908,1742699445962,-1356.31,0.00021917,2]
[356573909,1742699445972,-501.26,0.00021917,2]
[356573910,1742699445981,-698.24,0.00021917,2]
[356573911,1742699445990,-500.0,0.00021917,2]
[356573912,1742699446000,-14.47642188,0.00021917,2]
[356573913,1742699446648,-485.52357812,0.00021917,2]
[356573914,1742699446659,-1303.68,0.00021917,2]
[356573915,1742699446669,-519.64,0.00021917,2]
[356573916,1742699446678,-500.0,0.00021917,2]
[356573917,1742699446687,-500.0,0.00021917,2]
[356573918,1742699446698,-500.0,0.00021917,2]
[356573919,1742699446708,-500.0,0.00021917,2]
[356573920,1742699446718,-500.0,0.00021917,2]
[356573921,1742699446729,-286.30826523,0.00021917,2]
[356573922,1742699446738,-500.0,0.00021917,2]
[356573923,1742699446748,-807.22,0.00021917,2]
[356573924,1742699446757,-544.08,0.00021917,2]
[356573925,1742699446767,-500.0,0.00021917,2]
[356573926,1742699446776,-205.68452796,0.00021917,2]
[356573927,1742699835237,199.382751,0.00010959,2]
[356573929,1742700440123,-506.0,0.00012329,10]
[356573930,1742700440145,-210.0053561,0.0001456,2]
[356573931,1742700452115,-45.98618622,0.0001456,2]
[356573932,1742700452136,-303.64549967,0.00014856,2]
[356573937,1742700546088,-164.1933743,0.00014856,2]
[356573938,1742700546108,-300.0,0.00014999,2]
[356573939,1742700546127,-42480.80255551,0.00015,4]
[356573940,1742700546146,-465.1419437,0.00015599,2]
[356573941,1742700546166,-420.0,0.00016416,2]
[356573942,1742700546185,-587.0,0.00017966,2]
[356573943,1742700546204,-3533.5146272,0.00018513,2]
[356573944,1742700546224,-250.0,0.00018513,2]
[356573945,1742700546243,-1937.490991,0.00018673,2]
[356573946,1742700546262,-199.382751,0.00019178,2]
[356573947,1742700546281,-823.0,0.00019663,2]
[356573948,1742700546301,-1743.9471045,0.00019899,2]
[356573949,1742700547114,-864.16274217,0.00019899,2]
[356573950,1742700547134,-221.29444866,0.00019899,2]
[356573951,1742700547154,-575.68215486,0.00019998,2]
[356573952,1742700547176,-2499.98105905,0.00019998,2]
[356573953,1742700547197,-500.0,0.00019998,2]
[356573954,1742700547217,-214.99570821,0.00019998,2]
[356573955,1742700547239,-2499.98105905,0.00019998,2]
[356573956,1742700547264,-197.48293301,0.00019998,2]
[356573957,1742700547286,-2499.98105905,0.00019998,2]
[356573958,1742700547307,-500.0,0.00019998,2]
[356573959,1742700547329,-2499.98105905,0.00019998,2]
[356573960,1742700547350,-502.68199887,0.00019998,2]
[356573961,1742700547371,-2499.98105905,0.00019998,2]
[356573962,1742700547392,-2499.98105905,0.00019998,2]
[356573963,1742700547413,-2499.98105905,0.00019998,2]
[356573964,1742700547434,-2499.98105905,0.00019998,2]
[356573965,1742700547456,-2499.98105905,0.00019998,2]
[356573966,1742700547476,-2499.98105905,0.00019998,2]
[356573967,1742700547500,-2499.98105905,0.00019998,2]
[356573968,1742700547522,-2499.98105905,0.00019998,2]
[356573969,1742700547544,-2499.98105905,0.00019998,2]
[356573970,1742700547566,-2499.98105905,0.00019998,2]
[356573971,1742700547588,-2499.98105905,0.00019998,2]
[356573972,1742700547610,-2499.98105905,0.00019998,2]
[356573973,1742700547637,-2499.98105905,0.00019998,2]
[356573974,1742700547659,-2499.98105905,0.00019998,2]
[356573975,1742700547680,-2499.98105905,0.00019998,2]
[356573976,1742700547703,-2499.98105905,0.00019998,2]
[356573977,1742700547724,-2499.98105905,0.00019998,2]
[356573978,1742700547746,-2499.98105905,0.00019998,2]
[356573979,1742700547767,-2499.98105905,0.00019998,2]
[356573980,1742700547789,-2499.98105905,0.00019998,2]
[356573981,1742700547811,-2499.98105905,0.00019998,2]
[356573982,1742700547832,-2499.98105905,0.00019998,2]
[356573983,1742700547854,-2499.98105905,0.00019998,2]
[356573984,1742700547876,-2499.98105905,0.00019998,2]
[356573985,1742700547898,-2499.98105905,0.00019998,2]
[356573986,1742700547920,-2499.98105905,0.00019998,2]
[356573987,1742700547942,-2499.98105905,0.00019998,2]
[356573988,1742700547964,-2499.98105905,0.00019998,2]
[356573989,1742700547986,-2499.98105905,0.00019998,2]
[356573990,1742700548008,-2499.98105905,0.00019998,2]
[356573991,1742700548031,-2499.98105905,0.00019998,2]
[356573992,1742700548054,-2499.98105905,0.00019998,2]
[356573993,1742700548077,-2499.98105905,0.00019998,2]
[356573994,1742700548101,-2499.98105905,0.00019998,2]
[356573995,1742700548123,-2499.98105905,0.00019998,2]
[356573996,1742700548148,-2499.98105905,0.00019998,2]
[356573997,1742700548171,-2499.98105905,0.00019998,2]
[356573998,1742700548196,-2499.98105905,0.00019998,2]
[356573999,1742700548219,-2499.98105905,0.00019998,2]
[356574000,1742700548241,-2499.98105905,0.00019998,2]
[356574001,1742700548264,-2499.98105905,0.00019998,2]
[356574002,1742700548285,-2499.98105905,0.00019998,2]
[356574003,1742700548307,-2499.98105905,0.00019998,2]
[356574004,1742700548328,-2499.98105905,0.00019998,2]
[356574005,1742700548349,-2499.98105905,0.00019998,2]
[356574006,1742700548370,-2499.98105905,0.00019998,2]
[356574007,1742700548391,-2499.98105905,0.00019998,2]
[356574008,1742700548412,-2499.98105905,0.00019998,2]
[356574009,1742700548433,-2499.98105905,0.00019998,2]
[356574010,1742700548455,-2499.98105905,0.00019998,2]
[356574011,1742700548477,-2499.98105905,0.00019998,2]
[356574012,1742700548498,-2499.98105905,0.00019998,2]
[356574013,1742700548520,-2499.98105905,0.00019998,2]
[356574014,1742700548542,-2499.98105905,0.00019998,2]
[356574015,1742700548564,-2499.98105905,0.00019998,2]
[356574016,1742700548585,-2499.98105905,0.00019998,2]
[356574017,1742700548606,-2499.98105905,0.00019998,2]
[356574018,1742700548633,-2499.98105905,0.00019998,2]
[356574019,1742700548655,-2499.98105905,0.00019998,2]
[356574020,1742700548677,-2429.98158939,0.00019998,2]
[356574021,1742700548698,-2429.98158939,0.00019998,2]
[356574022,1742700548721,-2429.98158939,0.00019998,2]
[356574023,1742700548742,-2429.98158939,0.00019998,2]
[356574024,1742700548764,-2429.98158939,0.00019998,2]
[356574025,1742700548788,-2429.98158939,0.00019998,2]
[356574026,1742700548810,-2429.98158939,0.00019998,2]
[356574027,1742700548833,-2429.98158939,0.00019998,2]
[356574028,1742700548855,-2429.98158939,0.00019998,2]
[356574029,1742700548877,-2429.98158939,0.00019998,2]
[356574030,1742700548900,-2429.98158939,0.00019998,2]
[356574031,1742700548922,-2429.98158939,0.00019998,2]
[356574032,1742700548944,-2429.98158939,0.00019998,2]
[356574033,1742700548966,-2429.98158939,0.00019998,2]
[356574034,1742700548988,-2429.98158939,0.00019998,2]
[356574035,1742700549012,-2429.98158939,0.00019998,2]
[356574036,1742700549034,-2429.98158939,0.00019998,2]
[356574037,1742700549056,-2429.98158939,0.00019998,2]
[356574038,1742700549078,-2429.98158939,0.00019998,2]
[356574039,1742700549099,-2429.98158939,0.00019998,2]
[356574040,1742700549121,-2429.98158939,0.00019998,2]
[356574041,1742700549145,-2429.98158939,0.00019998,2]
[356574042,1742700549171,-2429.98158939,0.00019998,2]
[356574043,1742700549194,-2429.98158939,0.00019998,2]
[356574044,1742700549217,-2429.98158939,0.00019998,2]
[356574045,1742700549238,-10170.0,0.0002,120]
[356574046,1742700549259,-152.0,0.00020106,2]
[356574047,1742700549282,-221.29444862,0.00020119,2]
[356574048,1742700549304,-500.0,0.00020225,2]
[356574049,1742700549326,-500.0,0.00020225,2]
[356574050,1742700549347,-500.0,0.00020225,2]
[356574051,1742700549368,-500.0,0.00020225,2]
[356574052,1742700549389,-500.0,0.00020225,2]
[356574053,1742700549410,-509.72366492,0.00020225,2]
[356574054,1742700549432,-500.0,0.00020225,2]
[356574055,1742700549453,-500.0,0.00020225,2]
[356574056,1742700549473,-500.0,0.00020225,2]
[356574057,1742700549494,-500.0,0.00020225,2]
[356574058,1742700549515,-221.29444862,0.00020339,2]
[356574059,1742700549536,-221.29444862,0.00020558,2]
[356574060,1742700549557,-2608.10984663,0.00020682,2]
[356574061,1742700549580,-1275.65246456,0.0002071,20]
[356574062,1742700549600,-221.29444862,0.00020778,2]
[356574063,1742700549624,-600.0,0.00020823,2]
[356574064,1742700549645,-728.80450912,0.00020826,2]
[356574065,1742700549667,-1238.05,0.00020837,2]
[356574066,1742700549689,-1238.05,0.00020837,2]
[356574067,1742700549711,-1238.05,0.00020837,2]
[356574068,1742700549732,-1238.05,0.00020837,2]
[356574069,1742700549753,-1238.05,0.00020837,2]
[356574070,1742700549775,-1238.05,0.00020837,2]
[356574071,1742700549796,-1238.05,0.00020837,2]
[356574072,1742700549817,-1238.05,0.00020837,2]
[356574073,1742700549839,-1238.05,0.00020837,2]
[356574074,1742700549860,-1238.05,0.00020837,2]
[356574075,1742700549882,-24900.0,0.00020847,2]
[356574076,1742700549903,-622.2,0.00020878,2]
[356574077,1742700549924,-500.0,0.000209,2]
[356574078,1742700549945,-500.0,0.000209,2]
[356574079,1742700549968,-500.0,0.000209,2]
[356574080,1742700549990,-500.0,0.000209,2]
[356574081,1742700550012,-500.0,0.000209,2]
[356574082,1742700550034,-500.0,0.000209,2]
[356574083,1742700550057,-500.0,0.000209,2]
[356574084,1742700550080,-500.0,0.000209,2]
[356574085,1742700550102,-500.0,0.000209,2]
[356574086,1742700550125,-35.91841762,0.00020933,2]
[356574118,1742700632153,-600.0,0.00019986,2]
[356574119,1742700632163,-622.2,0.00020041,2]
[356574120,1742700632176,-936.99364797,0.00020096,2]
[356574121,1742700632186,-500.0,0.00020225,2]
[356574122,1742700632196,-1000.0,0.00020822,2]
[356574123,1742700632206,-5000.0,0.00021815,2]
[356574124,1742700632216,-152.50587112,0.00021904,2]
[356574125,1742700632226,-458.91662943,0.00021916,2]
[356574126,1742700632236,-300.0,0.00021916,2]
[356574127,1742700632247,-402.97750841,0.00021916,2]
[356574128,1742700632257,-500.0,0.00021917,2]
[356574129,1742700632267,-500.0,0.00021917,2]
[356574130,1742700632277,-679.1,0.00021917,2]
[356574131,1742700632287,-1124.06,0.00021917,2]
[356574132,1742700632297,-578.3,0.00021917,2]
[356574133,1742700632307,-500.0,0.00021917,2]
[356574134,1742700632318,-500.0,0.00021917,2]
[356574135,1742700632328,-184.57270172,0.00021917,2]
[356574136,1742700632338,-500.0,0.00021917,2]
[356574137,1742700632348,-500.0,0.00021917,2]
[356574138,1742700632358,-500.0,0.00021917,2]
[356574139,1742700632368,-500.0,0.00021917,2]
[356574140,1742700632378,-500.0,0.00021917,2]
[356574141,1742700632388,-500.0,0.00021917,2]
[356574142,1742700632398,-500.0,0.00021917,2]
[356574143,1742700632409,-500.0,0.00021917,2]
[356574144,1742700632419,-500.0,0.00021917,2]
[356574145,1742700632429,-500.0,0.00021917,2]
[356574146,1742700632439,-973.56,0.00021917,2]
[356574147,1742700632450,-500.0,0.00021917,2]
[356574148,1742700632460,-500.0,0.00021917,2]
[356574149,1742700632470,-500.0,0.00021917,2]
[356574150,1742700632480,-500.0,0.00021917,2]
[356574151,1742700632490,-537.4,0.00021917,2]
[356574152,1742700632500,-500.0,0.00021917,2]
[356574153,1742700632510,-500.0,0.00021917,2]
[356574154,1742700632520,-200.0,0.00021917,2]
[356574155,1742700632530,-500.0,0.00021917,2]
[356574156,1742700632540,-500.0,0.00021917,2]
[356574157,1742700632550,-500.0,0.00021917,2]
[356574158,1742700632562,-430.64296938,0.00021917,2]
[356574159,1742700632572,-500.0,0.00021917,2]
[356574160,1742700632583,-500.0,0.00021917,2]
[356574161,1742700632593,-626.78,0.00021917,2]
[356574162,1742700632603,-500.0,0.00021917,2]
[356574163,1742700632613,-624.78,0.00021917,2]
[356574164,1742700632623,-716.3,0.00021917,2]
[356574165,1742700632633,-500.0,0.00021917,2]
[356574166,1742700632643,-500.0,0.00021917,2]
[356574167,1742700632654,-500.0,0.00021917,2]
[356574168,1742700632668,-500.0,0.00021917,2]
[356574169,1742700632686,-500.0,0.00021917,2]
[356574170,1742700632696,-550.22,0.00021917,2]
[356574171,1742700632707,-500.0,0.00021917,2]
[356574172,1742700632717,-500.0,0.00021917,2]
[356574173,1742700632727,-500.0,0.00021917,2]
[356574174,1742700632738,-695.47,0.00021917,2]
[356574175,1742700632749,-500.0,0.00021917,2]
[356574176,1742700632759,-500.0,0.00021917,2]
[356574177,1742700632769,-500.0,0.00021917,2]
[356574178,1742700632779,-500.0,0.00021917,2]
[356574179,1742700632789,-591.57,0.00021917,2]
[356574180,1742700632799,-500.0,0.00021917,2]
[356574181,1742700632809,-500.0,0.00021917,2]
[356574182,1742700632819,-500.0,0.00021917,2]
[356574183,1742700632830,-500.0,0.00021917,2]
[356574184,1742700632840,-500.0,0.00021917,2]
[356574185,1742700632850,-500.0,0.00021917,2]
[356574186,1742700632860,-500.0,0.00021917,2]
[356574187,1742700632871,-500.0,0.00021917,2]
[356574188,1742700632881,-500.0,0.00021917,2]
[356574189,1742700632891,-500.0,0.00021917,2]
[356574190,1742700632901,-219.23445388,0.00021917,2]
[356574191,1742700632911,-500.0,0.00021917,2]
[356574192,1742700632921,-500.0,0.00021917,2]
[356574193,1742700632932,-838.33,0.00021917,2]
[356574194,1742700632942,-500.0,0.00021917,2]
[356574195,1742700632952,-500.0,0.00021917,2]
[356574196,1742700632963,-598.61,0.00021917,2]
[356574197,1742700632975,-500.0,0.00021917,2]
[356574198,1742700632986,-500.0,0.00021917,2]
[356574199,1742700632996,-500.0,0.00021917,2]
[356574200,1742700633007,-500.0,0.00021917,2]
[356574201,1742700633017,-598.77,0.00021917,2]
[356574202,1742700633028,-1574.76,0.00021917,2]
[356574203,1742700633039,-529.21,0.00021917,2]
[356574204,1742700633053,-500.0,0.00021917,2]
[356574205,1742700633066,-707.04,0.00021917,2]
[356574206,1742700633078,-593.96644414,0.00021917,2]
[356574207,1742700633091,-607.95,0.00021917,2]
[356574208,1742700633103,-1818.04,0.00021917,2]
[356574209,1742700633115,-669.25,0.00021917,2]
[356574210,1742700633127,-1748.48,0.00021917,2]
[356574211,1742700633138,-500.0,0.00021917,2]
[356574212,1742700633149,-500.0,0.00021917,2]
[356574213,1742700633161,-500.0,0.00021917,2]
[356574214,1742700633173,-500.0,0.00021917,2]
[356574215,1742700633185,-1449.72,0.00021917,2]
[356574216,1742700633196,-2592.24,0.00021917,2]
[356574217,1742700633208,-780.83,0.00021917,2]
[356574218,1742700633220,-572.86,0.00021917,2]
[356574219,1742700633232,-622.49,0.00021917,2]
[356574220,1742700633244,-651.25,0.00021917,2]
[356574221,1742700633256,-667.04,0.00021917,2]
[356574222,1742700633268,-500.0,0.00021917,2]
[356574223,1742700633281,-663.87,0.00021917,2]
[356574224,1742700633293,-500.0,0.00021917,2]
[356574225,1742700633304,-921.38,0.00021917,2]
[356574226,1742700633317,-500.0,0.00021917,2]
[356574227,1742700633328,-500.0,0.00021917,2]
[356574228,1742700633339,-500.0,0.00021917,2]
[356574229,1742700633350,-1024.65,0.00021917,2]
[356574230,1742700633362,-500.0,0.00021917,2]
[356574231,1742700633374,-1157.77,0.00021917,2]
[356574232,1742700633387,-500.0,0.00021917,2]
[356574233,1742700633398,-610.29,0.00021917,2]
[356574234,1742700633409,-500.0,0.00021917,2]
[356574235,1742700633420,-650.72,0.00021917,2]
[356574236,1742700633432,-500.0,0.00021917,2]
[356574237,1742700633447,-500.0,0.00021917,2]
[356574238,1742700633458,-500.0,0.00021917,2]
[356574239,1742700633470,-2228.74,0.00021917,2]
[356574240,1742700633481,-500.0,0.00021917,2]
[356574241,1742700633491,-500.0,0.00021917,2]
[356574242,1742700633501,-1628.31,0.00021917,2]
[356574243,1742700633511,-500.0,0.00021917,2]
[356574244,1742700633522,-1299.8,0.00021917,2]
[356574245,1742700633533,-533.29362646,0.00021917,2]
[356574246,1742700633544,-912.71,0.00021917,2]
[356574247,1742700633556,-500.0,0.00021917,2]
[356574248,1742700633567,-500.0,0.00021917,2]
[356574249,1742700633579,-507.32,0.00021917,2]
[356574250,1742700633591,-500.0,0.00021917,2]
[356574251,1742700633603,-669.15,0.00021917,2]
[356574252,1742700633614,-1249.36,0.00021917,2]